bitfinex/quotes_ETHUSD_20240621
["timestamp","ask_amount","ask_price","bid_price","bid_amount"]
[1718995107933,3.298553,3499.6,3499.0,2.28636]
[1718995108265,3.298553,3499.6,3499.4,2.28609]
[1718995108451,3.0,3499.5,3499.0,2.28634]
[1718995108770,2.3305,3500.1,3499.0,0.429134]
[1718995108922,2.3305,3500.1,3498.7,2.005]
[1718995108923,2.3305,3500.8,3500.0,2.2857]
[1718995109121,2.474,3501.7,3500.2,2.28557]
[1718995109324,2.474,3501.7,3500.4,2.28544]
[1718995109546,1.2748011,3501.6,3500.4,2.28544]
[1718995110256,1.2748011,3501.6,3499.9,2.005]
[1718995110459,2.474,3501.7,3500.6,2.28531]
[1718995110635,2.474,3501.7,3500.7,2.28524]
[1718995110835,2.474,3501.7,3500.8,2.28518]
[1718995111033,0.2474,3501.6,3500.9,2.28512]
[1718995111633,0.2474,3501.6,3500.7,2.28522]
[1718995111840,0.2474,3501.6,3500.5,2.28538]
[1718995111841,0.2474,3501.6,3500.8,2.28517]
[1718995112036,0.27214,3501.5,3500.8,2.28517]
[1718995113227,0.27214,3501.5,3500.7,2.28521]
[1718995113428,0.27214,3501.5,3500.6,2.28531]
[1718995113627,0.27214,3501.5,3500.8,2.28516]
[1718995113950,3.0,3501.6,3500.8,2.28516]
[1718995114140,2.474,3501.7,3500.8,2.28516]
[1718995114537,3.0,3502.1,3500.8,2.4202]
[1718995114766,2.2929,3502.9,3501.3,2.28481]
[1718995114767,3.0,3502.6,3501.3,2.28481]
[1718995115072,3.0,3502.6,3500.8,2.4202]
[1718995115073,3.3,3502.5,3501.6,2.28466]
[1718995115287,2.2929,3502.9,3501.4,2.28478]
[1718995115583,2.2929,3502.9,3502.0,2.2844]
[1718995115727,0.55732955,3502.8,3501.8,2.28449]
[1718995115936,3.55732955,3502.8,3501.8,2.28449]
[1718995116757,3.55732955,3502.8,3501.6,2.28466]
[1718995116947,0.58502296,3502.7,3501.3,2.28486]
[1718995117135,0.58502296,3502.7,3501.0,7.44]
[1718995117679,0.58502296,3502.7,3501.2,2.28492]
[1718995117888,0.61762629,3502.6,3501.4,2.28479]
[1718995118586,0.61762629,3502.6,3501.3,2.28484]
[1718995119350,0.61762629,3502.6,3501.0,7.44]
[1718995119588,0.61762629,3502.6,3500.6,2.824]
[1718995119589,0.55,3502.5,3500.7,2.28525]
[1718995119786,0.55,3502.5,3501.2,2.28492]
[1718995120147,0.61762629,3502.6,3501.3,2.28485]
[1718995120345,0.61762629,3502.6,3501.6,2.28466]
[1718995121049,0.61762629,3502.6,3501.2,2.28486]
[1718995121287,0.36176263,3502.5,3500.9,2.28509]
[1718995121452,0.36176263,3502.5,3501.2,2.28492]
[1718995122261,0.36176263,3502.5,3500.8,0.510925]
[1718995122457,2.8903,3502.4,3500.5,2.4178]
[1718995122661,3.0,3502.3,3500.6,0.24178]
[1718995122861,0.55,3502.2,3500.6,0.24178]
[1718995123067,0.55,3502.2,3500.7,2.28525]
[1718995123276,0.58903,3502.1,3500.7,2.28525]
[1718995123473,0.58903,3502.1,3501.0,2.28505]
[1718995123666,0.58903,3502.1,3500.8,2.28518]
[1718995123874,0.58903,3502.1,3500.9,2.28507]
[1718995124392,0.58903,3502.1,3501.0,2.28504]
[1718995124687,0.358903,3502.0,3501.0,2.28504]
[1718995125463,0.358903,3502.0,3500.6,2.52705]
[1718995125891,0.358903,3502.0,3500.9,2.28507]
[1718995126063,0.358903,3502.0,3500.6,0.24178]
[1718995126264,0.358903,3502.0,3500.3,2.28545]
[1718995126494,0.358903,3502.0,3500.4,2.796325]
[1718995126680,0.358903,3502.0,3500.5,2.28538]
[1718995127477,0.358903,3502.0,3500.6,2.28532]
[1718995127669,0.358903,3502.0,3500.4,2.796335]
[1718995127863,0.358903,3502.0,3500.4,0.510945]
[1718995128392,0.358903,3502.0,3500.6,2.28531]
[1718995128590,0.358903,3502.0,3500.6,0.2796255]
[1718995128794,0.358903,3502.0,3500.9,2.28511]
[1718995128992,0.358903,3502.0,3500.6,0.2796255]
[1718995128993,0.358903,3502.0,3500.7,2.28525]
[1718995130175,0.358903,3502.0,3500.8,2.28518]
[1718995130382,0.358903,3502.0,3500.8,0.48501255]
[1718995130976,0.358903,3502.0,3500.6,0.2796255]
[1718995131177,2.414,3501.9,3500.4,0.510945]
[1718995131400,5.414,3501.9,3500.4,2.796365]
[1718995131702,5.414,3501.9,3500.4,0.510945]
[1718995131905,5.414,3501.9,3500.1,2.28558]
[1718995132111,5.414,3501.9,3500.3,2.28551]
[1718995133204,5.414,3501.9,3500.3,4.57102]
[1718995133403,5.414,3501.9,3500.4,2.28542]
[1718995136496,5.414,3501.9,3500.5,2.28537]
[1718995136697,0.6361933,3501.8,3500.5,2.971014]
[1718995137025,3.6361933,3501.8,3500.5,2.971014]
[1718995137235,3.6361933,3501.8,3500.5,0.685644]
[1718995138820,3.6361933,3501.8,3500.2,2.28553]
[1718995139295,3.6361933,3501.8,3500.3,2.28551]
[1718995139628,3.6361933,3501.8,3500.2,2.28556]
[1718995140193,3.6361933,3501.8,3500.1,2.28564]
[1718995140397,2.88,3501.7,3499.8,2.28583]
[1718995140623,3.52090963,3501.7,3499.9,3.258353]
[1718995140811,3.0,3501.6,3499.9,3.258353]
[1718995140998,0.55,3501.5,3499.9,3.258353]
[1718995141314,0.65209096,3501.4,3500.0,0.5544203]
[1718995141737,0.65209096,3501.4,3500.0,2.8401103]
[1718995142011,3.0,3501.6,3500.2,2.28552]
[1718995142215,3.0,3501.6,3500.3,2.28551]
[1718995143136,5.33,3501.7,3500.3,2.28551]
[1718995143741,2.4164,3501.5,3500.0,0.5544203]
[1718995143905,2.4164,3501.5,3499.8,2.119]
[1718995143906,5.4164,3501.5,3499.8,2.119]
[1718995144234,5.4164,3501.5,3499.4,4.7705]
[1718995144235,2.3467,3501.3,3499.4,4.7705]
[1718995144434,2.3467,3501.1,3499.4,2.2861]
[1718995144732,2.3467,3501.1,3499.5,2.28601]
[1718995144940,5.3467,3501.1,3499.5,2.28601]
[1718995145089,5.3467,3501.1,3499.3,2.28617]
[1718995145319,2.4081,3500.9,3499.3,1.443869]
[1718995145517,2.9581,3500.8,3499.1,2.28623]
[1718995145954,3.0,3500.7,3499.2,2.28622]
[1718995146160,0.59581,3500.6,3499.3,0.457245]
[1718995146373,0.59581,3500.6,3499.2,2.28622]
[1718995146374,0.59581,3500.6,3499.1,2.2863]
[1718995147723,0.59581,3500.6,3499.0,2.28636]
[1718995147957,0.59581,3500.6,3498.9,2.2864]
[1718995148165,2.2855,3500.5,3498.9,2.2864]
[1718995148467,0.588131,3500.4,3499.0,0.669195]
[1718995148776,3.0,3500.4,3499.0,0.669195]
[1718995148939,2.2855,3501.1,3499.8,2.28583]
[1718995149125,2.2855,3501.1,3500.3,2.28551]
[1718995149320,2.119,3502.5,3500.3,2.28551]
[1718995149321,2.4867,3502.4,3500.3,2.28551]
[1718995149766,2.4867,3502.4,3500.5,2.28536]
[1718995150051,2.4867,3502.4,3500.6,2.28526]
[1718995150844,2.2597,3502.2,3500.0,2.28571]
[1718995151148,2.2597,3502.2,3500.3,2.28545]
[1718995151347,2.2597,3502.2,3500.5,2.119]
[1718995151570,5.2597,3502.2,3500.8,2.28518]
[1718995151739,0.24716,3502.1,3500.8,2.95413]
[1718995152078,3.24716,3502.1,3500.8,2.95413]
[1718995152256,3.0,3502.1,3501.1,2.28497]
[1718995152556,2.2597,3502.2,3501.2,0.05711499]
[1718995153813,2.2597,3502.2,3500.8,0.66895]
[1718995154112,0.22597,3502.1,3500.7,2.2852]
[1718995154259,2.2597,3502.2,3501.1,2.28496]
[1718995154460,2.2597,3502.2,3501.0,2.28505]
[1718995154705,2.2597,3502.2,3501.2,2.28492]
[1718995154909,2.2597,3502.2,3501.1,2.28499]
[1718995155191,2.2597,3502.2,3501.2,0.228499]
[1718995155757,2.2597,3502.2,3501.3,2.119]
[1718995156074,2.4181,3502.6,3501.5,2.28473]
[1718995156401,0.24181,3502.5,3501.5,2.28473]
[1718995156558,0.24181,3502.5,3501.3,2.119]
[1718995156559,3.0,3502.5,3501.3,2.119]
[1718995156764,2.4181,3502.6,3501.3,2.119]
[1718995157002,2.4181,3502.6,3501.9,2.28445]
[1718995157184,2.4181,3502.6,3502.0,0.0571035]
[1718995157501,2.4181,3502.6,3501.8,2.28453]
[1718995157804,2.4181,3502.6,3501.8,0.45692]
[1718995158167,2.4181,3502.6,3501.8,2.74145]
[1718995159067,2.4181,3502.6,3501.8,0.45692]
[1718995159507,2.4181,3502.6,3501.8,2.74145]
[1718995159962,2.4181,3502.6,3501.8,0.45692]
[1718995160283,2.4181,3502.6,3501.4,2.28478]
[1718995160983,2.4181,3502.6,3501.3,2.119]
[1718995161185,2.4181,3502.6,3501.2,0.228499]
[1718995161812,2.4181,3502.6,3501.2,2.513419]
[1718995162032,2.4181,3502.6,3501.3,2.7646869]
[1718995162165,2.4181,3502.6,3501.5,2.28473]
[1718995162670,2.4181,3502.6,3501.7,2.2846]
[1718995163689,2.4181,3502.6,3501.9,2.28447]
[1718995163892,9.409,3503.5,3501.9,2.28447]
[1718995163893,2.2714,3503.3,3501.9,2.28447]
[1718995164097,2.2714,3503.3,3502.0,0.668807]
[1718995164275,2.2714,3503.3,3502.1,2.28433]
[1718995164772,2.2714,3503.3,3502.0,0.668807]
[1718995165193,2.2714,3503.3,3502.1,2.28434]
[1718995165398,2.2714,3503.3,3502.2,0.5237617]
[1718995166190,2.2714,3503.3,3501.4,4.68729]
[1718995166395,2.2714,3503.3,3501.4,2.4025]
[1718995166709,2.2714,3503.3,3501.8,2.28452]
[1718995166882,2.2714,3503.3,3501.9,2.28446]
[1718995167084,2.2714,3503.3,3502.0,0.456906]
[1718995167935,2.2714,3503.3,3501.8,2.28452]
[1718995168117,2.2714,3503.3,3501.6,2.28465]
[1718995168403,2.2714,3503.3,3501.6,2.2846]
[1718995168606,2.2714,3503.3,3501.8,2.2845]
[1718995169065,2.2714,3503.3,3501.7,2.28459]
[1718995169270,0.64991609,3503.2,3501.7,2.28459]
[1718995169471,2.4584,3503.1,3501.6,0.71683469]
[1718995169672,5.4584,3503.1,3501.6,0.71683469]
[1718995169971,3.0084,3503.0,3501.3,0.4798469]
[1718995170201,3.0084,3503.0,3500.9,4.40408]
[1718995170202,2.4822,3502.9,3500.9,2.119]
[1718995170438,2.4822,3502.7,3500.9,4.40411]
[1718995170591,2.4822,3502.6,3500.9,4.40411]
[1718995171013,2.4822,3502.5,3500.9,4.40411]
[1718995171175,0.54822,3502.4,3500.9,2.119]
[1718995171378,3.0,3502.4,3500.9,2.119]
[1718995171708,2.4822,3502.5,3500.9,2.119]
[1718995172708,2.4822,3502.5,3500.5,2.119]
[1718995172921,2.3836,3502.3,3500.6,1.184444]
[1718995173294,5.3836,3502.3,3500.6,1.184444]
[1718995173524,5.3836,3502.3,3500.6,3.469764]
[1718995175212,2.4034,3502.2,3500.6,1.184444]
[1718995175517,1.145162,3502.1,3500.5,4.40434]
[1718995175812,3.55,3502.1,3500.5,4.40434]
[1718995176004,3.55,3502.1,3500.6,2.28531]
[1718995176210,3.55,3502.1,3500.7,2.28525]
[1718995176716,3.55,3502.1,3500.6,2.28531]
[1718995176918,4.200162,3502.1,3500.7,0.66897]
[1718995177779,3.0,3502.1,3501.0,2.28505]
[1718995177982,3.0,3502.1,3500.7,0.66897]
[1718995177983,2.4034,3502.2,3501.2,2.2849]
[1718995178429,2.4034,3502.2,3501.1,2.28499]
[1718995178583,3.0,3502.9,3501.5,2.28473]
[1718995178584,2.4341,3502.8,3501.5,2.28473]
[1718995178799,2.4341,3502.8,3501.8,2.28453]
[1718995179497,2.4341,3502.8,3501.7,4.4036]
[1718995179691,2.4341,3502.8,3501.8,2.28453]
[1718995179931,2.4341,3502.8,3501.9,0.668813]
[1718995180090,2.4341,3502.8,3501.9,2.953263]
[1718995180490,2.4341,3502.8,3502.0,2.2844]
[1718995181338,2.4341,3502.8,3501.9,2.953263]
[1718995182730,2.4341,3502.8,3501.9,0.668813]
[1718995183037,2.67751,3502.8,3501.7,2.119]
[1718995183205,3.0,3502.7,3501.7,2.2846]
[1718995183528,3.0,3502.7,3501.8,2.2845]
[1718995183904,2.4341,3502.8,3501.6,2.28466]
[1718995184112,2.4341,3502.8,3501.7,2.741539]
[1718995184448,2.4341,3502.8,3501.7,2.2846]
[1718995185161,2.4341,3502.8,3501.6,2.28466]
[1718995185935,2.4341,3502.8,3501.4,2.28478]
[1718995186294,2.4341,3502.8,3501.6,2.28466]
[1718995186638,2.4341,3502.8,3501.7,2.741544]
[1718995187354,2.4341,3502.8,3501.8,0.05710392]
[1718995187526,2.4341,3502.8,3501.9,2.28441]
[1718995188155,2.4341,3502.8,3501.7,0.456944]
[1718995189450,2.4341,3502.8,3501.4,4.40379]
[1718995189618,2.4341,3502.8,3501.4,2.119]
[1718995189815,2.4341,3502.8,3501.1,10.182933]
[1718995190051,3.0,3503.0,3500.0,2.3162]
[1718995190052,2.119,3502.3,3500.0,2.3162]
[1718995190271,1.719,3502.0,3500.0,2.28569]
[1718995190551,2.4031,3501.8,3500.0,2.2857]
[1718995190766,2.4031,3501.6,3500.1,0.457147]
[1718995190983,5.4031,3501.6,3500.0,2.2857]
[1718995191835,5.4031,3501.6,3499.7,6.69074]
[1718995192031,2.3336,3501.4,3499.8,0.669074]
[1718995192237,2.3336,3501.3,3499.8,0.669074]
[1718995192428,5.3336,3501.3,3499.8,0.669074]
[1718995192987,3.0,3501.2,3499.8,2.954904]
[1718995193135,0.83336,3501.1,3499.9,0.7359874]
[1718995193519,0.83336,3501.1,3499.5,2.28602]
[1718995193745,0.83336,3501.1,3499.4,2.119]
[1718995193928,2.3262,3501.0,3499.2,2.28623]
[1718995194155,2.8762,3501.0,3499.2,2.28623]
[1718995194358,5.455,3500.9,3499.2,2.28623]
[1718995195137,5.455,3500.9,3499.3,2.28616]
[1718995195458,0.6005,3500.8,3499.4,0.457239]
[1718995195832,0.6005,3500.8,3499.5,2.28603]
[1718995196017,0.6005,3500.8,3499.4,0.457239]
[1718995196218,0.6005,3500.8,3499.4,2.28606]
[1718995196417,0.6005,3500.8,3499.3,2.28616]
[1718995196658,0.6005,3500.8,3499.4,2.28609]
[1718995198483,0.6005,3500.8,3499.6,2.28595]
[1718995198781,5.455,3500.9,3499.6,2.28595]
[1718995199060,3.0,3500.8,3499.6,2.28595]
[1718995199269,2.455,3500.9,3499.8,2.28584]
[1718995199633,2.455,3500.9,3499.4,2.119]
[1718995199833,2.455,3500.9,3499.5,2.6228]
[1718995200031,2.455,3500.9,3499.8,2.119]
[1718995200229,2.455,3500.9,3499.9,0.01491574]
[1718995200463,2.455,3500.9,3500.1,2.28564]
[1718995200877,2.455,3500.9,3500.2,0.01521169]
[1718995201047,2.455,3500.9,3500.2,0.45866217]
[1718995201241,2.455,3500.9,3499.8,2.119]
[1718995201242,2.455,3500.9,3500.0,2.28567]
[1718995202052,2.455,3500.9,3499.8,4.40482]
[1718995202388,2.455,3500.9,3499.8,4.40478]
[1718995202737,0.27960465,3501.4,3499.8,4.40478]
[1718995202738,3.0,3501.3,3500.2,4.40453]
[1718995202937,2.3309,3501.4,3500.4,2.2854]
[1718995203237,2.3309,3501.4,3500.5,2.28538]
[1718995204664,2.3309,3501.4,3500.7,2.28524]
[1718995205176,2.3309,3501.4,3500.5,2.28532]
[1718995205534,2.3309,3501.4,3500.8,2.28517]
[1718995206180,2.3309,3501.4,3500.6,2.28525]
[1718995206339,2.3309,3501.4,3500.7,0.50551683]
[1718995206539,2.3309,3501.4,3500.4,0.4844983]
[1718995206978,2.3309,3501.4,3500.2,2.119]
[1718995207181,2.3309,3501.4,3500.0,2.28568]
[1718995207395,2.3309,3501.4,3499.7,9.559]
[1718995207396,2.3309,3501.4,3499.7,11.84485]
[1718995207694,2.3309,3501.4,3499.9,2.28574]
[1718995207987,2.3309,3501.4,3499.7,4.40485]
[1718995208210,0.23309,3501.3,3499.8,3.217194]
[1718995208410,3.23309,3501.3,3499.8,3.217194]
[1718995208619,0.556399,3501.2,3499.9,0.7622104]
[1718995208914,0.556399,3501.2,3500.0,2.28571]
[1718995209326,0.556399,3501.2,3500.1,0.05713258]
[1718995209475,0.556399,3501.2,3499.9,3.0479804]
[1718995210312,0.556399,3501.2,3499.9,0.7622104]
[1718995210631,2.2787,3501.0,3499.9,0.7622104]
[1718995210793,2.2787,3501.0,3499.7,2.119]
[1718995210794,5.2787,3501.0,3499.7,2.119]
[1718995210998,2.2787,3501.0,3499.7,2.119]
[1718995211530,2.2787,3501.0,3499.6,2.28596]
[1718995211698,0.52787,3500.9,3499.7,0.669104]
[1718995212031,3.52787,3500.9,3499.7,0.669104]
[1718995212577,3.52787,3500.9,3499.8,2.28583]
[1718995213135,3.52787,3500.9,3499.7,2.955004]
[1718995213810,3.0,3500.9,3500.1,2.28564]
[1718995214138,2.2787,3501.0,3500.1,2.28564]
[1718995214426,2.2787,3501.0,3500.2,4.40457]
[1718995214799,2.2787,3501.0,3500.5,2.28537]
[1718995215127,2.2787,3501.0,3500.6,0.457088]
[1718995215432,2.2787,3501.0,3500.2,2.119]
[1718995215590,2.2787,3501.0,3500.1,2.28564]
[1718995216431,2.2787,3501.0,3499.8,4.40484]
[1718995216829,2.2787,3501.0,3500.0,2.2857]
[1718995217134,2.2787,3501.0,3500.1,0.44047]
[1718995218105,2.2787,3501.0,3499.8,2.119]
[1718995218442,2.2787,3501.0,3499.5,2.28603]
[1718995218598,2.2787,3501.0,3499.6,2.28595]
[1718995218800,2.2787,3501.0,3499.9,2.28576]
[1718995219105,2.2787,3501.0,3500.1,2.28559]
[1718995219300,2.2787,3501.0,3500.0,2.28571]
[1718995219301,2.2787,3501.0,3500.2,0.45713]
[1718995219630,2.2787,3501.0,3499.8,4.40484]
[1718995220304,2.2787,3501.0,3499.9,2.28577]
[1718995220834,2.2787,3501.0,3500.1,2.28563]
[1718995221042,2.2787,3501.0,3500.0,2.2857]
[1718995221204,2.2787,3501.0,3499.8,4.40478]
[1718995221404,2.2787,3501.0,3499.9,0.669069]
[1718995221844,2.2787,3501.0,3499.4,9.559]
[1718995222158,2.2787,3501.0,3498.9,2.28643]
[1718995222159,2.4539,3500.8,3498.9,2.28643]
[1718995222334,2.4539,3500.6,3499.0,2.28634]
[1718995222633,2.4539,3500.6,3499.1,2.28629]
[1718995222833,2.99929,3500.5,3499.2,0.457263]
[1718995223043,2.99929,3500.5,3499.1,2.28629]
[1718995223044,3.0,3500.4,3499.1,2.28629]
[1718995223269,2.4539,3500.5,3499.1,2.28629]
[1718995224569,2.4539,3500.5,3499.2,2.28618]
[1718995224773,2.4539,3500.5,3499.3,0.685883]
[1718995225280,2.4539,3500.5,3499.0,2.28636]
[1718995225571,2.4539,3500.5,3499.3,2.28615]
[1718995225871,2.4539,3500.5,3499.7,2.28589]
[1718995226028,2.3377,3501.6,3500.0,2.2857]
[1718995226230,2.57769578,3501.6,3500.5,2.28538]
[1718995226426,2.57769578,3501.6,3500.6,2.28531]
[1718995227065,2.57769578,3501.6,3500.7,0.04435937]
[1718995228060,3.0,3501.5,3500.7,0.04435937]
[1718995228566,3.0,3501.5,3500.7,0.46151894]
[1718995228733,2.3377,3501.6,3500.8,2.28518]
[1718995229452,2.3377,3501.6,3500.6,2.28531]
[1718995231072,2.3377,3501.6,3500.4,2.2854]
[1718995231272,2.3377,3501.6,3500.3,2.28551]
[1718995231886,2.3377,3501.6,3500.6,2.28531]
[1718995232081,2.3377,3501.6,3500.9,2.28506]
[1718995232377,2.4816,3502.5,3501.3,2.28483]
[1718995232548,0.97716,3502.4,3501.0,2.28501]
[1718995232749,2.4816,3502.5,3501.4,2.2848]
[1718995233564,2.4816,3502.5,3501.3,2.28485]
[1718995233796,2.4816,3502.5,3501.4,2.28478]
[1718995233952,3.02976,3502.5,3501.4,2.28478]
[1718995234288,3.0,3502.4,3501.4,2.28478]
[1718995234583,3.0,3502.4,3501.2,2.2849]
[1718995235784,3.0,3502.4,3501.3,2.28486]
[1718995235991,2.3411,3502.3,3500.3,2.28547]
[1718995236293,2.3411,3502.1,3500.1,2.726111]
[1718995236458,2.4446,3502.0,3500.6,2.28532]
[1718995236656,0.75636,3501.9,3500.4,4.57081]
[1718995236868,3.75636,3501.9,3500.4,4.57076]
[1718995237199,3.75636,3501.9,3500.5,2.28538]
[1718995237653,3.75636,3501.9,3500.3,2.119]
[1718995238549,3.75636,3501.9,3500.4,2.28544]
[1718995238794,0.620096,3501.8,3500.5,2.28538]
[1718995238992,0.620096,3501.8,3500.6,2.28531]
[1718995239365,0.620096,3501.8,3500.7,2.28524]
[1718995240982,3.0,3501.9,3501.0,2.28504]
[1718995241293,2.4446,3502.0,3501.0,2.28504]
[1718995242105,2.4446,3502.0,3500.8,2.28513]
[1718995242390,2.4446,3502.0,3501.1,2.28499]
[1718995242979,2.4446,3502.0,3500.9,2.28506]
[1718995243200,2.4446,3502.0,3501.0,0.668918]
[1718995243355,2.4446,3502.0,3501.0,2.953968]
[1718995243760,2.4446,3502.0,3501.2,2.2849]
[1718995244017,2.4446,3502.0,3501.5,2.28473]
[1718995244306,2.2569,3502.6,3501.5,2.28473]
[1718995244858,2.2569,3502.6,3501.4,2.2848]
[1718995246081,2.2569,3502.6,3501.2,2.28486]
[1718995246364,1.25469,3502.5,3501.3,3.182217]
[1718995246568,4.25469,3502.5,3501.4,2.28477]
[1718995247381,2.2569,3502.6,3501.8,2.28453]
[1718995248270,2.2569,3502.6,3501.7,2.28459]
[1718995248594,2.2569,3502.6,3501.1,4.40397]
[1718995248769,2.2569,3502.6,3501.6,2.2846]
[1718995249464,2.2569,3502.6,3501.1,4.40399]
[1718995249804,0.22569,3502.5,3501.2,0.668911]
[1718995250480,0.22569,3502.5,3501.1,2.28499]
[1718995251077,2.4735,3502.4,3500.9,2.28509]
[1718995251377,2.4735,3502.4,3501.0,2.28505]
[1718995251587,5.4735,3502.4,3501.0,2.28505]
[1718995251801,0.569919,3502.3,3501.0,2.28505]
[1718995252114,3.569919,3502.3,3501.1,2.28496]
[1718995253300,3.569919,3502.3,3501.2,2.28492]
[1718995253465,3.569919,3502.3,3501.0,2.28505]
[1718995253669,3.569919,3502.3,3500.8,2.28519]
[1718995253911,0.6269109,3502.2,3501.0,2.28506]
[1718995254082,2.4342,3502.1,3500.7,2.28523]
[1718995254273,2.4342,3502.1,3500.6,2.119]
[1718995254274,2.4342,3502.0,3500.6,4.40431]
[1718995254606,2.4342,3502.0,3500.4,0.7130441]
[1718995254607,6.04031109,3502.0,3500.4,0.7130441]
[1718995254775,6.04031109,3502.0,3500.5,2.28532]
[1718995254970,0.60403111,3501.9,3500.6,2.28529]
[1718995255275,3.60403111,3501.9,3500.6,2.28529]
[1718995257503,3.60403111,3501.9,3500.7,2.28523]
[1718995257672,3.0,3501.9,3501.1,2.28499]
[1718995258073,2.4342,3502.0,3501.3,2.28484]
[1718995258615,2.3034,3502.7,3501.5,2.28473]
[1718995258828,1.25934,3502.6,3501.5,2.28473]
[1718995259032,4.25934,3502.6,3501.5,2.28473]
[1718995259343,4.25934,3502.6,3501.3,2.2848]
[1718995260200,2.3983,3502.5,3500.8,2.28518]
[1718995260426,5.824234,3502.5,3500.9,2.28509]
[1718995260705,5.824234,3502.5,3501.3,2.28482]
[1718995261411,5.824234,3502.5,3501.2,2.28486]
[1718995261412,5.824234,3502.5,3501.4,2.28478]
[1718995261711,5.3983,3502.5,3501.7,2.2846]
[1718995261932,5.3983,3502.5,3501.9,2.28444]
[1718995261933,2.3983,3502.5,3501.9,2.28444]
[1718995262502,2.3983,3502.5,3502.0,2.28437]
[1718995262710,2.4984,3502.9,3502.0,2.741251]
[1718995263238,2.4984,3502.9,3502.0,0.456881]
[1718995263545,2.4984,3502.9,3501.8,2.28453]
[1718995263857,2.4984,3502.9,3501.9,2.28444]
[1718995264141,2.4984,3502.9,3501.8,2.28453]
[1718995264460,2.4984,3502.9,3501.7,2.28459]
[1718995264602,2.74824,3502.9,3501.8,0.7145154]
[1718995264810,3.0,3502.8,3501.8,0.7145154]
[1718995265014,3.0,3502.8,3501.5,2.741684]
[1718995265537,3.0,3502.8,3501.6,2.28462]
[1718995266838,3.0,3502.8,3501.8,2.28447]
[1718995267406,2.4243,3502.7,3501.1,2.28495]
[1718995267643,2.4243,3502.7,3500.6,14.41531]
[1718995267644,2.999124,3502.7,3501.2,0.228495]
[1718995267943,5.9743,3502.6,3501.1,2.28497]
[1718995268146,2.9743,3502.6,3501.1,2.28497]
[1718995268449,2.9743,3502.6,3500.9,2.28511]
[1718995268450,2.2558,3502.4,3500.9,2.28511]
[1718995268742,2.2558,3502.4,3500.7,2.28525]
[1718995268942,2.8058,3502.3,3500.7,2.28525]
[1718995269101,2.2558,3502.1,3500.7,2.28525]
[1718995270747,2.2558,3502.1,3499.0,0.59286758]
[1718995270748,2.2558,3502.1,3501.3,2.28486]
[1718995271109,2.2558,3502.1,3501.5,2.28472]
[1718995271925,2.2558,3502.1,3501.5,2.28467]
[1718995274746,3.0,3502.8,3501.5,2.28467]
[1718995274747,2.3379,3502.7,3501.5,2.28467]
[1718995274947,2.3379,3502.7,3501.9,2.28442]
[1718995275122,2.3379,3502.7,3501.6,0.440367]
[1718995275319,2.3379,3502.7,3501.5,2.28471]
[1718995275721,2.3379,3502.7,3501.4,2.28479]
[1718995275915,2.3379,3502.7,3501.5,2.28473]
[1718995276653,2.3379,3502.7,3501.6,2.28463]
[1718995276946,2.3379,3502.7,3501.4,2.28479]
[1718995277155,2.57169,3502.7,3501.5,0.456959]
[1718995277363,3.0,3502.6,3501.5,2.28472]
[1718995278422,2.3455,3502.5,3500.8,2.28517]
[1718995278627,2.902669,3502.5,3501.0,2.28505]
[1718995278829,2.436,3502.3,3500.9,0.972517]
[1718995279023,2.436,3502.3,3500.8,2.28518]
[1718995279559,2.436,3502.3,3500.9,2.28511]
[1718995280641,2.436,3502.3,3500.9,2.28506]
[1718995280836,2.436,3502.3,3501.0,2.285]
[1718995281041,0.5993169,3502.2,3501.0,2.742006]
[1718995281368,0.5993169,3502.2,3501.0,0.457006]
[1718995281564,2.4883,3502.1,3501.0,0.457006]
[1718995281933,5.4883,3502.1,3501.0,0.457006]
[1718995282131,0.60876169,3502.0,3501.0,0.457006]
[1718995282359,3.60876169,3502.0,3501.0,0.457006]
[1718995283127,3.60876169,3502.0,3500.6,2.28527]
[1718995283128,2.3274,3501.9,3500.6,2.28527]
[1718995283352,2.3274,3501.9,3500.5,2.119]
[1718995283353,5.3274,3501.9,3500.5,4.40437]
[1718995283627,2.3274,3501.8,3500.5,2.28537]
[1718995284666,2.3274,3501.8,3500.2,2.28556]
[1718995284841,2.4351,3501.6,3500.3,3.469966]
[1718995285045,5.4351,3501.6,3500.3,3.469966]
[1718995285433,3.0,3501.5,3500.3,3.469966]
[1718995285650,2.4351,3501.6,3500.3,1.184456]
[1718995285863,2.4351,3501.6,3500.2,2.28556]
[1718995286049,2.4351,3501.6,3500.1,4.40464]
[1718995286969,2.4351,3501.6,3500.2,2.28557]
[1718995288679,2.4351,3501.6,3500.3,2.2855]
[1718995288872,2.4351,3501.6,3500.4,0.669014]
[1718995290234,2.4351,3501.6,3500.7,2.28525]
[1718995290873,2.4351,3501.6,3500.7,2.28524]
[1718995291040,2.4351,3501.6,3501.0,2.28499]
[1718995291431,3.0,3502.4,3500.6,2.119]
[1718995291432,2.3951,3502.3,3500.6,2.119]
[1718995291636,2.3951,3502.3,3501.3,2.28483]
[1718995291888,2.3951,3502.3,3501.4,2.28478]
[1718995292857,2.3951,3502.3,3501.2,2.28492]
[1718995293460,2.3951,3502.3,3501.2,4.56979]
[1718995293770,2.3951,3502.3,3501.3,0.668879]